fUSD/lending_fUSD_20251201
["ID","MTS","AMOUNT","RATE_DAILY","PERIOD"]
[395264676,1764574409489,-150.0,0.00016312,2]
[395264677,1764574409498,-163.70980013,0.00016317,2]
[395264678,1764574409507,-228.29835367,0.00016317,2]
[395264679,1764574409517,-150.0,0.00016317,2]
[395264680,1764574409527,-150.0,0.00016318,2]
[395264681,1764574409536,-150.0,0.00016322,2]
[395264682,1764574409545,-150.0,0.00016324,2]
[395264683,1764574409554,-150.0,0.00016329,2]
[395264684,1764574409564,-150.0,0.00016331,2]
[395264685,1764574409573,-163.70980013,0.00016334,2]
[395264686,1764574409583,-228.29835367,0.00016334,2]
[395264687,1764574409592,-150.0,0.00016337,2]
[395264688,1764574409601,-200.0,0.0001634,2]
[395264689,1764574409610,-1607.66216427,0.00016343,2]
[395264690,1764574409620,-150.0,0.00016346,2]
[395264691,1764574409629,-150.0,0.00016347,2]
[395264692,1764574409639,-163.70980013,0.00016351,2]
[395264693,1764574409648,-228.29835367,0.00016351,2]
[395264694,1764574409657,-150.0,0.0001636,2]
[395264695,1764574409667,-150.0,0.00016362,2]
[395264696,1764574409677,-163.70980013,0.00016369,2]
[395264697,1764574409687,-150.0,0.00016369,2]
[395264698,1764574409696,-228.29835367,0.00016369,2]
[395264699,1764574409706,-150.0,0.00016369,2]
[395264700,1764574409716,-150.0,0.00016374,2]
[395264701,1764574409726,-150.0,0.00016384,2]
[395264702,1764574409735,-163.70980013,0.00016386,2]
[395264703,1764574409745,-228.29835367,0.00016386,2]
[395264704,1764574409754,-150.0,0.00016387,2]
[395264705,1764574409763,-150.0,0.0001639,2]
[395264706,1764574409772,-150.0,0.00016391,2]
[395264707,1764574409782,-150.0,0.00016395,2]
[395264708,1764574409792,-1016.50455865,0.00016398,2]
[395264709,1764574409801,-500.62734798,0.00016398,2]
[395264710,1764574409811,-191.85688305,0.00016398,2]
[395264711,1764574409820,-707.34062351,0.00016398,2]
[395264712,1764574409829,-388.21665271,0.00016398,2]
[395264713,1764574409839,-1000.0,0.00016398,2]
[395264714,1764574409849,-1000.0,0.00016398,2]
[395264715,1764574409859,-1003.03874905,0.00016398,2]
[395264716,1764574409869,-713.79343577,0.00016398,2]
[395264717,1764574409878,-1000.0,0.00016398,2]
[395264718,1764574409888,-1000.0,0.00016398,2]
[395264719,1764574409897,-500.45943647,0.00016398,2]
[395264720,1764574409907,-1000.0,0.00016398,2]
[395264721,1764574409916,-505.70856743,0.00016398,2]
[395264722,1764574409926,-1000.0,0.00016398,2]
[395264723,1764574409935,-938.4223103,0.00016398,2]
[395264724,1764574409945,-409.96658599,0.00016398,2]
[395264725,1764574409955,-1055.00053518,0.00016398,2]
[395264726,1764574409965,-1000.0,0.00016398,2]
[395264727,1764574409978,-1000.0,0.00016398,2]
[395264728,1764574409987,-1000.75241727,0.00016398,2]
[395264729,1764574409996,-1000.0,0.00016398,2]
[395264730,1764574410007,-1000.0,0.00016398,2]
[395264731,1764574410020,-465.96204167,0.00016398,2]
[395264732,1764574410029,-150.0,0.00016402,2]
[395264733,1764574410039,-163.70980013,0.00016403,2]
[395264734,1764574410052,-228.29835367,0.00016403,2]
[395264735,1764574410062,-150.0,0.00016412,2]
[395264736,1764574410072,-150.0,0.00016413,2]
[395264737,1764574410081,-27195.5680038,0.00016418,2]
[395264738,1764574410091,-150.0,0.0001642,2]
[395264739,1764574410101,-163.70980013,0.0001642,2]
[395264740,1764574410110,-150.0,0.0001642,2]
[395264741,1764574410119,-150.0,0.0001642,2]
[395264742,1764574410129,-228.29835367,0.0001642,2]
[395264743,1764574410139,-150.0,0.0001642,2]
[395264744,1764574410148,-150.0,0.00016429,2]
[395264745,1764574410158,-1321.0,0.00016435,2]
[395264746,1764574410167,-150.0,0.00016435,2]
[395264747,1764574410176,-921.94,0.00016435,2]
[395264748,1764574410186,-150.0,0.00016437,2]
[395264749,1764574410195,-163.70980013,0.00016437,2]
[395264750,1764574410204,-228.29835367,0.00016437,2]
[395264751,1764574410215,-648.89,0.00016438,2]
[395264752,1764574410224,-5454.01,0.00016438,2]
[395264753,1764574410233,-150.0,0.00016438,2]
[395264754,1764574410243,-800.0,0.00016438,2]
[395264755,1764574410252,-163.94,0.0001644,2]
[395264756,1764574410261,-150.0,0.0001645,2]
[395264757,1764574410270,-518.0,0.00016453,2]
[395264758,1764574410280,-163.70980013,0.00016454,2]
[395264759,1764574410289,-228.29835367,0.00016454,2]
[395264760,1764574410299,-150.0,0.00016457,2]
[395264761,1764574410309,-150.0,0.00016457,2]
[395264762,1764574410318,-150.0,0.00016462,2]
[395264763,1764574410328,-150.0,0.00016469,2]
[395264764,1764574410337,-163.70980013,0.00016472,2]
[395264765,1764574410346,-228.29835367,0.00016472,2]
[395264766,1764574410356,-150.0,0.00016472,2]
[395264767,1764574410365,-150.0,0.00016477,2]
[395264768,1764574410375,-150.0,0.00016479,2]
[395264769,1764574410385,-150.0,0.0001648,2]
[395264770,1764574410394,-427.65493559,0.00016482,2]
[395264771,1764574410403,-518.0,0.00016483,2]
[395264772,1764574410415,-150.0,0.00016485,2]
[395264773,1764574410425,-150.0,0.00016487,2]
[395264774,1764574410435,-163.70980013,0.00016489,2]
[395264775,1764574410444,-228.29835367,0.00016489,2]
[395264776,1764574410454,-150.0,0.00016493,2]
[395264777,1764574410463,-150.0,0.00016501,2]
[395264778,1764574410472,-150.0,0.00016501,2]
[395264779,1764574410481,-548.06994663,0.00016501,2]
[395264780,1764574410490,-200.0,0.00016501,2]
[395264781,1764574410499,-200.0,0.00016501,2]
[395264782,1764574410509,-163.70980013,0.00016506,2]
[395264783,1764574410519,-228.29835367,0.00016506,2]
[395264784,1764574410529,-150.0,0.00016509,2]
[395264785,1764574410538,-150.0,0.00016512,2]
[395264786,1764574410547,-150.0,0.00016513,2]
[395264787,1764574410556,-1000.0,0.00016522,2]
[395264788,1764574410566,-163.70980013,0.00016523,2]
[395264789,1764574410575,-150.0,0.00016523,2]
[395264790,1764574410584,-228.29835367,0.00016523,2]
[395264791,1764574410594,-150.0,0.00016523,2]
[395264792,1764574410603,-942.0,0.00016533,2]
[395264793,1764574410613,-150.0,0.00016533,2]
[395264794,1764574410622,-150.0,0.00016537,2]
[395264795,1764574410632,-150.0,0.00016539,2]
[395264796,1764574410641,-163.70980013,0.0001654,2]
[395264797,1764574410650,-228.29835367,0.0001654,2]
[395264798,1764574410660,-150.0,0.00016541,2]
[395264799,1764574410669,-150.0,0.00016543,2]
[395264800,1764574410679,-150.0,0.00016545,2]
[395264801,1764574410689,-150.0,0.00016548,2]
[395264802,1764574410698,-163.70980013,0.00016557,2]
[395264803,1764574410708,-228.29835367,0.00016557,2]
[395264804,1764574410717,-150.0,0.00016562,2]
[395264805,1764574410727,-150.0,0.00016562,2]
[395264806,1764574410737,-150.0,0.00016562,2]
[395264807,1764574410747,-150.0,0.00016567,2]
[395264808,1764574410757,-150.0,0.00016569,2]
[395264809,1764574410767,-150.0,0.00016569,2]
[395264810,1764574410780,-1321.0,0.00016572,2]
[395264811,1764574410789,-163.70980013,0.00016575,2]
[395264812,1764574410799,-228.29835367,0.00016575,2]
[395264813,1764574410811,-150.0,0.00016575,2]
[395264814,1764574410821,-150.0,0.00016587,2]
[395264815,1764574410831,-11342.96089445,0.00016588,2]
[395264816,1764574410841,-150.0,0.00016589,2]
[395264817,1764574410851,-163.70980013,0.00016592,2]
[395264818,1764574410860,-228.29835367,0.00016592,2]
[395264819,1764574410870,-150.0,0.00016596,2]
[395264820,1764574410880,-150.0,0.00016599,2]
[395264821,1764574410891,-150.0,0.00016603,2]
[395264822,1764574410900,-163.70980013,0.00016609,2]
[395264823,1764574410910,-228.29835367,0.00016609,2]
[395264824,1764574410919,-150.0,0.00016611,2]
[395264825,1764574410929,-150.0,0.00016612,2]
[395264826,1764574410939,-150.0,0.00016617,2]
[395264827,1764574410949,-150.0,0.00016624,2]
[395264828,1764574410958,-163.70980013,0.00016626,2]
[395264829,1764574410973,-228.29835367,0.00016626,2]
[395264830,1764574410983,-150.0,0.00016626,2]
[395264831,1764574410992,-150.0,0.00016629,2]
[395264832,1764574411002,-518.0,0.0001663,2]
[395264833,1764574411014,-150.0,0.00016633,2]
[395264834,1764574411025,-150.0,0.00016637,2]
[395264835,1764574411040,-163.70980013,0.00016643,2]
[395264836,1764574411057,-228.29835367,0.00016643,2]
[395264837,1764574411067,-150.0,0.00016647,2]
[395264838,1764574411076,-150.0,0.00016647,2]
[395264839,1764574411086,-1460.77414547,0.00016648,2]
[395264840,1764574411095,-150.0,0.00016652,2]
[395264841,1764574411104,-150.0,0.00016655,2]
[395264842,1764574411114,-518.0,0.00016656,2]
[395264843,1764574411124,-150.0,0.00016658,2]
[395264844,1764574411133,-150.0,0.00016658,2]
[395264845,1764574411142,-1095.71233131,0.00016659,2]
[395264846,1764574411151,-1133.2195511,0.00016659,2]
[395264847,1764574411160,-1119.71980502,0.00016659,2]
[395264848,1764574411169,-1043.76751807,0.00016659,2]
[395264849,1764574411179,-1125.40794945,0.00016659,2]
[395264850,1764574411188,-1102.69146516,0.00016659,2]
[395264851,1764574411198,-1103.45261951,0.00016659,2]
[395264852,1764574411207,-1059.72344818,0.00016659,2]
[395264853,1764574411219,-5491.65035635,0.0001666,2]
[395264854,1764574411228,-163.70980013,0.0001666,2]
[395264855,1764574411237,-228.29835367,0.0001666,2]
[395264856,1764574411246,-150.0,0.00016662,2]
[395264857,1764574411256,-518.0,0.00016676,2]
[395264858,1764574411266,-163.70980013,0.00016677,2]
[395264859,1764574411275,-150.0,0.00016677,2]
[395264860,1764574411284,-228.29835367,0.00016677,2]
[395264861,1764574411294,-150.0,0.00016677,2]
[395264862,1764574411304,-150.0,0.0001668,2]
[395264863,1764574411313,-150.0,0.00016687,2]
[395264864,1764574411323,-620.56912278,0.00016687,2]
[395264865,1764574411332,-150.0,0.00016688,2]
[395264866,1764574411341,-150.0,0.00016691,2]
[395264867,1764574411350,-163.70980013,0.00016695,2]
[395264868,1764574411360,-228.29835367,0.00016695,2]
[395264869,1764574411369,-642.94,0.00016697,2]
[395264870,1764574411378,-150.0,0.000167,2]
[395264871,1764574411387,-1000.0,0.000167,2]
[395264872,1764574411397,-150.0,0.00016708,2]
[395264873,1764574411406,-1321.0,0.00016709,2]
[395264874,1764574411415,-150.0,0.00016712,2]
[395264875,1764574411425,-163.70980013,0.00016712,2]
[395264876,1764574411435,-228.29835367,0.00016712,2]
[395264877,1764574411444,-648.89,0.00016712,3]
[395264878,1764574411453,-150.0,0.00016712,2]
[395264879,1764574411463,-150.0,0.00016718,2]
[395264880,1764574411472,-150.0,0.00016722,2]
[395264881,1764574411482,-163.70980013,0.00016729,2]
[395264882,1764574411492,-228.29835367,0.00016729,2]
[395264883,1764574411502,-150.0,0.00016729,2]
[395264884,1764574411511,-1120.16,0.00016729,2]
[395264885,1764574411522,-571.55421177,0.00016729,2]
[395264886,1764574411532,-4216.78,0.00016729,2]
[395264887,1764574411541,-150.0,0.00016736,2]
[395264888,1764574411551,-150.0,0.00016737,2]
[395264889,1764574411560,-150.0,0.00016744,2]
[395264890,1764574411570,-150.0,0.00016744,2]
[395264891,1764574411579,-500.0,0.00016744,2]
[395264892,1764574411588,-6911.10840627,0.00016745,2]
[395264893,1764574411597,-163.70980013,0.00016746,2]
[395264894,1764574411607,-228.29835367,0.00016746,2]
[395264895,1764574411616,-942.0,0.00016747,2]
[395264896,1764574411625,-150.0,0.00016748,2]
[395264897,1764574411635,-150.0,0.0001676,2]
[395264898,1764574411644,-150.0,0.00016761,2]
[395264899,1764574411653,-163.70980013,0.00016763,2]
[395264900,1764574411663,-228.29835367,0.00016763,2]
[395264901,1764574411672,-150.0,0.00016764,2]
[395264902,1764574411681,-150.0,0.00016765,2]
[395264903,1764574411691,-150.0,0.00016766,2]
[395264904,1764574411700,-150.0,0.00016767,2]
[395264905,1764574411709,-150.0,0.00016778,2]
[395264906,1764574411718,-163.70980013,0.0001678,2]
[395264907,1764574411727,-228.29835367,0.0001678,2]
[395264908,1764574411737,-150.0,0.0001678,2]
[395264909,1764574411746,-150.0,0.00016786,2]
[395264910,1764574411755,-150.0,0.00016788,2]
[395264911,1764574411765,-150.0,0.00016791,2]
[395264912,1764574411774,-163.70980013,0.00016798,2]
[395264913,1764574411783,-228.29835367,0.00016798,2]
[395264914,1764574411793,-1000.0,0.000168,2]
[395264915,1764574411802,-220.33559963,0.00016807,2]
[395264916,1764574411812,-150.0,0.00016807,2]
[395264917,1764574411821,-1097.0,0.00016808,2]
[395264918,1764574411832,-150.0,0.0001681,2]
[395264919,1764574411842,-150.0,0.00016811,2]
[395264920,1764574411851,-163.70980013,0.00016815,2]
[395264921,1764574411861,-228.29835367,0.00016815,2]
[395264922,1764574411871,-150.0,0.00016816,2]
[395264923,1764574411882,-150.0,0.00016819,2]
[395264924,1764574411892,-150.0,0.00016822,2]
[395264925,1764574411901,-163.70980013,0.00016832,2]
[395264926,1764574411911,-150.0,0.00016832,2]
[395264927,1764574411921,-228.29835367,0.00016832,2]
[395264928,1764574411931,-150.0,0.00016832,2]
[395264929,1764574411940,-205.0,0.00016836,2]
[395264930,1764574411950,-150.0,0.00016836,2]
[395264931,1764574411960,-150.0,0.00016837,2]
[395264932,1764574411976,-150.0,0.00016839,2]
[395264933,1764574411998,-1322.0,0.00016846,2]
[395264934,1764574412019,-150.0,0.00016847,2]
[395264935,1764574412030,-163.70980013,0.00016849,2]
[395264936,1764574412040,-228.29835367,0.00016849,2]
[395264937,1764574412052,-150.0,0.00016854,2]
[395264938,1764574412062,-150.0,0.00016861,2]
[395264939,1764574412073,-200.0,0.00016863,2]
[395264940,1764574412083,-2000.0,0.00016864,2]
[395264941,1764574412092,-200.0,0.00016864,2]
[395264942,1764574412102,-200.0,0.00016864,2]
[395264943,1764574412112,-163.70980013,0.00016866,2]
[395264944,1764574412122,-228.29835367,0.00016866,2]
[395264945,1764574412133,-150.0,0.00016867,2]
[395264946,1764574412143,-150.0,0.00016873,2]
[395264947,1764574412153,-150.0,0.00016875,2]
[395264948,1764574412163,-150.0,0.00016876,2]
[395264949,1764574412174,-150.0,0.00016877,2]
[395264950,1764574412185,-163.70980013,0.00016883,2]
[395264951,1764574412195,-228.29835367,0.00016883,2]
[395264952,1764574412206,-150.0,0.00016883,2]
[395264953,1764574412216,-150.0,0.00016886,2]
[395264954,1764574412226,-1513.10536683,0.00016892,2]
[395264955,1764574412236,-150.0,0.00016897,2]
[395264956,1764574412247,-150.0,0.00016898,2]
[395264957,1764574412257,-921.94,0.00016899,2]
[395264958,1764574412267,-10000.0,0.000169,2]
[395264959,1764574412278,-8830.48252945,0.000169,2]
[395264960,1764574412288,-27195.5680038,0.000169,2]
[395264961,1764574412299,-1000.0,0.000169,2]
[395264962,1764574412309,-620.56912278,0.000169,2]
[395264963,1764574412318,-1607.66216427,0.000169,2]
[395264964,1764574412329,-15718.8954656,0.000169,2]
[395264965,1764574412339,-12176.0,0.000169,2]
[395264966,1764574412348,-163.70980013,0.00016901,2]
[395264967,1764574412358,-228.29835367,0.00016901,2]
[395264968,1764574412368,-150.0,0.00016903,2]
[395264969,1764574412378,-150.0,0.00016911,2]
[395264970,1764574412388,-150.0,0.00016912,2]
[395264971,1764574412398,-163.70980013,0.00016918,2]
[395264972,1764574412410,-228.29835367,0.00016918,2]
[395264973,1764574412420,-150.0,0.0001692,2]
[395264974,1764574412431,-150.0,0.00016927,2]
[395264975,1764574412441,-150.0,0.00016931,2]
[395264976,1764574412452,-150.0,0.00016932,2]
[395264977,1764574412463,-163.70980013,0.00016935,2]
[395264978,1764574412474,-228.29835367,0.00016935,2]
[395264979,1764574412485,-150.0,0.00016935,2]
[395264980,1764574412495,-150.0,0.00016936,2]
[395264981,1764574412505,-150.0,0.00016942,2]
[395264982,1764574412515,-1500.0,0.00016946,2]
[395264983,1764574412526,-1001.24854415,0.00016946,2]
[395264984,1764574412537,-1585.93988918,0.00016946,2]
[395264985,1764574412547,-987.452036,0.00016946,2]
[395264986,1764574412557,-1500.0,0.00016946,2]
[395264987,1764574412568,-550.61391722,0.00016946,2]
[395264988,1764574412578,-1500.0,0.00016946,2]
[395264989,1764574412589,-1500.0,0.00016946,2]
[395264990,1764574412599,-1434.82176489,0.00016946,2]
[395264991,1764574412611,-331.20229943,0.00016946,2]
[395264992,1764574412626,-163.70980013,0.00016952,2]
[395264993,1764574412637,-228.29835367,0.00016952,2]
[395264994,1764574412648,-1120.16,0.00016955,2]
[395264995,1764574412658,-1120.16,0.00016955,2]
[395264996,1764574412668,-1120.16,0.00016955,2]
[395264997,1764574412678,-1120.16,0.00016955,2]
[395264998,1764574412688,-921.94,0.00016955,2]
[395264999,1764574412699,-921.94,0.00016955,2]
[395265000,1764574412709,-921.94,0.00016955,2]
[395265001,1764574412720,-4216.78,0.00016955,2]
[395265002,1764574412730,-4216.78,0.00016955,2]
[395265003,1764574412740,-4216.78,0.00016955,2]
[395265004,1764574412750,-4216.78,0.00016955,2]
[395265005,1764574412760,-212.66437805,0.00016956,2]
[395265006,1764574412770,-150.0,0.00016956,2]
[395265007,1764574412780,-150.0,0.00016956,2]
[395265008,1764574412791,-150.0,0.00016956,2]
[395265009,1764574412802,-150.0,0.00016956,2]
[395265010,1764574412813,-150.0,0.00016957,2]
[395265011,1764574412823,-500.0,0.00016958,2]
[395265012,1764574412833,-604.47,0.00016958,2]
[395265013,1764574412844,-500.0,0.00016958,2]
[395265014,1764574412854,-500.0,0.00016958,2]
[395265015,1764574412865,-500.0,0.00016958,2]
[395265016,1764574412875,-500.0,0.00016958,2]
[395265017,1764574412885,-500.0,0.00016958,2]
[395265018,1764574412895,-500.0,0.00016958,2]
[395265019,1764574412905,-500.0,0.00016958,2]
[395265020,1764574412916,-500.0,0.00016958,2]
[395265021,1764574412926,-500.0,0.00016958,2]
[395265022,1764574412941,-500.0,0.00016958,2]
[395265023,1764574412952,-500.0,0.00016958,2]
[395265024,1764574412962,-500.0,0.00016958,2]
[395265025,1764574412977,-150.0,0.00016958,2]
[395265026,1764574412988,-13093.0,0.00016959,2]
[395265027,1764574412999,-150.0,0.00016961,2]
[395265028,1764574413010,-150.0,0.00016964,2]
[395265029,1764574413020,-163.70980013,0.00016969,2]
[395265030,1764574413031,-228.29835367,0.00016969,2]
[395265031,1764574413043,-162.85978352,0.00016973,2]
[395265032,1764574413055,-500.0,0.00016983,2]
[395265033,1764574413065,-648.89,0.00016986,4]
[395265034,1764574413075,-258.82276166,0.00016986,2]
[395265035,1764574413085,-153.31902391,0.00016986,2]
[395265036,1764574413095,-163.70980013,0.00016986,2]
[395265037,1764574413106,-150.42787237,0.00016986,2]
[395265038,1764574413116,-181.60520491,0.00016986,2]
[395265039,1764574413127,-151.79282377,0.00016986,2]
[395265040,1764574413137,-151.40541107,0.00016986,2]
[395265041,1764574413151,-150.38501482,0.00016986,2]
[395265042,1764574413162,-255.96291346,0.00016986,2]
[395265043,1764574413173,-228.29835367,0.00016986,2]
[395265044,1764574413183,-151.2234943,0.00016986,2]
[395265045,1764574413194,-152.43824806,0.00016986,2]
[395265046,1764574413204,-150.0,0.00016986,2]
[395265047,1764574413215,-202.34922021,0.00016986,2]
[395265048,1764574413225,-182.17370662,0.00016986,2]
[395265049,1764574413236,-240.0,0.00016992,2]
[395265050,1764574413247,-921.94,0.00016996,2]
[395265051,1764574413257,-1297.37,0.00016997,2]
[395265052,1764574413268,-1000.0,0.00016997,2]
[395265053,1764574413280,-1000.0,0.00016997,2]
[395265054,1764574413290,-1000.0,0.00016997,2]
[395265055,1764574413301,-1000.0,0.00016997,2]
[395265056,1764574413312,-300.971,0.00016997,2]
[395265057,1764574413322,-500.0,0.00016998,2]
[395265058,1764574413333,-500.0,0.00016998,2]
[395265059,1764574413343,-500.0,0.00016998,2]
[395265060,1764574413354,-500.0,0.00016998,2]
[395265061,1764574413365,-500.0,0.00016998,2]
[395265062,1764574413375,-1231.98120029,0.00016999,5]
[395265063,1764574413386,-1120.16,0.00016999,2]
[395265064,1764574413396,-1120.16,0.00016999,2]
[395265065,1764574413407,-1120.16,0.00016999,2]
[395265066,1764574413418,-1120.16,0.00016999,2]
[395265067,1764574413428,-1120.16,0.00016999,2]
[395265068,1764574413439,-1120.16,0.00016999,2]
[395265069,1764574413449,-1120.16,0.00016999,2]
[395265070,1764574413460,-1120.16,0.00016999,2]
[395265071,1764574413471,-1120.16,0.00016999,2]
[395265072,1764574413481,-1120.18189094,0.00016999,2]
[395265073,1764574413492,-500.0,0.00016999,2]
[395265074,1764574413503,-229.27249885,0.00016999,2]
[395265075,1764574413514,-604.47,0.00016999,2]
[395265076,1764574413524,-604.47,0.00016999,2]
[395265077,1764574413535,-604.47,0.00016999,2]
[395265078,1764574413546,-604.47,0.00016999,2]
[395265079,1764574413557,-604.47,0.00016999,2]
[395265080,1764574413568,-604.47,0.00016999,2]
[395265081,1764574413578,-604.47,0.00016999,2]
[395265082,1764574413589,-604.47,0.00016999,2]
[395265083,1764574413599,-604.47,0.00016999,2]
[395265084,1764574413610,-604.47,0.00016999,2]
[395265085,1764574413620,-604.47,0.00016999,2]
[395265086,1764574413631,-921.94,0.00016999,2]
[395265087,1764574413641,-604.47,0.00016999,2]
[395265088,1764574413652,-921.94,0.00016999,2]
[395265089,1764574413662,-604.47,0.00016999,2]
[395265090,1764574413677,-921.94,0.00016999,2]
[395265091,1764574413688,-604.47,0.00016999,2]
[395265092,1764574413699,-921.94,0.00016999,2]
[395265093,1764574413710,-604.47,0.00016999,2]
[395265094,1764574413720,-921.94,0.00016999,2]
[395265095,1764574413732,-604.47,0.00016999,2]
[395265096,1764574413743,-604.51385656,0.00016999,2]
[395265097,1764574413755,-921.94,0.00016999,2]
[395265098,1764574413766,-921.94,0.00016999,2]
[395265099,1764574413778,-921.98,0.00016999,2]
[395265100,1764574413789,-500.0,0.00016999,2]
[395265101,1764574413800,-500.0,0.00016999,2]
[395265102,1764574413811,-500.0,0.00016999,2]
[395265103,1764574413822,-500.0,0.00016999,2]
[395265104,1764574413833,-500.0,0.00016999,2]
[395265105,1764574413843,-500.0,0.00016999,2]
[395265106,1764574413854,-500.0,0.00016999,2]
[395265107,1764574413866,-500.0,0.00016999,2]
[395265108,1764574413876,-500.0,0.00016999,2]
[395265109,1764574413887,-500.0,0.00016999,2]
[395265110,1764574413898,-500.0,0.00016999,2]
[395265111,1764574413909,-500.0,0.00016999,2]
[395265112,1764574413920,-500.0,0.00016999,2]
[395265113,1764574413930,-510.9486006,0.00016999,2]
[395265114,1764574413941,-500.0,0.00016999,2]
[395265115,1764574413952,-568.76021857,0.00016999,2]
[395265116,1764574413963,-500.0,0.00016999,2]
[395265117,1764574413978,-500.0,0.00016999,2]
[395265118,1764574413988,-500.0,0.00016999,2]
[395265119,1764574413999,-500.0,0.00016999,2]
[395265120,1764574414010,-620.43832599,0.00016999,2]
[395265121,1764574414020,-500.0,0.00016999,2]
[395265122,1764574414031,-500.0,0.00016999,2]
[395265123,1764574414043,-500.0,0.00016999,2]
[395265124,1764574414054,-500.0,0.00016999,2]
[395265125,1764574414064,-500.0,0.00016999,2]
[395265126,1764574414074,-500.0,0.00016999,2]
[395265127,1764574414084,-500.0,0.00016999,2]
[395265128,1764574414095,-500.0,0.00016999,2]
[395265129,1764574414105,-500.0,0.00016999,2]
[395265130,1764574414115,-500.0,0.00016999,2]
[395265131,1764574414125,-500.0,0.00016999,2]
[395265132,1764574414136,-500.0,0.00016999,2]
[395265133,1764574414146,-500.0,0.00016999,2]
[395265134,1764574414156,-500.0,0.00016999,2]
[395265135,1764574414167,-500.0,0.00016999,2]
[395265136,1764574414178,-150.61555063,0.00016999,2]
[395265137,1764574414188,-500.0,0.00016999,2]
[395265138,1764574414199,-500.0,0.00016999,2]
[395265139,1764574414209,-500.0,0.00016999,2]
[395265140,1764574414220,-500.0,0.00016999,2]
[395265141,1764574414231,-500.0,0.00016999,2]
[395265142,1764574414241,-523.35292461,0.00016999,2]
[395265143,1764574414252,-4216.78,0.00016999,2]
[395265144,1764574414266,-4216.78,0.00016999,2]
[395265145,1764574414277,-4216.78,0.00016999,2]
[395265146,1764574414287,-4216.78,0.00016999,2]
[395265147,1764574414298,-4216.78,0.00016999,2]
[395265148,1764574414308,-4216.78,0.00016999,2]
[395265149,1764574414319,-4216.78,0.00016999,2]
[395265150,1764574414331,-4216.78,0.00016999,2]
[395265151,1764574414343,-4216.78,0.00016999,2]
[395265152,1764574414355,-4216.78746161,0.00016999,2]
[395265153,1764574414813,-500.0,0.00016999,2]
[395265154,1764574414824,-500.0,0.00016999,2]
[395265155,1764574414834,-500.0,0.00016999,2]
[395265156,1764574414844,-500.0,0.00016999,2]
[395265157,1764574414853,-500.0,0.00016999,2]
[395265158,1764574414863,-500.0,0.00016999,2]
[395265159,1764574414873,-500.0,0.00016999,2]
[395265160,1764574414882,-500.0,0.00016999,2]
[395265161,1764574414892,-500.0,0.00016999,2]
[395265162,1764574414902,-541.1615163,0.00016999,2]
[395265163,1764574414911,-530.10808563,0.00016999,2]
[395265164,1764574414921,-500.0,0.00016999,2]
[395265165,1764574414930,-500.0,0.00016999,2]
[395265166,1764574414939,-639.66251844,0.00016999,2]
[395265167,1764574414949,-300.0,0.00016999,2]
[395265168,1764574414958,-500.0,0.00016999,2]
[395265169,1764574414970,-500.0,0.00016999,2]
[395265170,1764574414979,-500.0,0.00016999,2]
[395265171,1764574414988,-500.0,0.00016999,2]
[395265172,1764574414997,-500.0,0.00016999,2]
[395265173,1764574415006,-500.0,0.00016999,2]
[395265174,1764574415017,-500.0,0.00016999,2]
[395265175,1764574415026,-500.0,0.00016999,2]